fUSD/lending_fUSD_20240420
["ID","MTS","AMOUNT","RATE_DAILY","PERIOD"]
[323005266,1713583838526,-595.58,0.00015068,2]
[323005267,1713583838535,-500.0,0.00015068,2]
[323005268,1713583838544,-500.0,0.00015068,2]
[323005269,1713583838553,-500.0,0.00015068,2]
[323005270,1713583838563,-500.0,0.00015068,2]
[323005271,1713583838572,-500.0,0.00015068,2]
[323005272,1713583838582,-660.56,0.00015068,2]
[323005273,1713583838591,-500.0,0.00015068,2]
[323005274,1713583838600,-500.0,0.00015068,2]
[323005275,1713583838610,-500.0,0.00015068,2]
[323005276,1713583838619,-512.27,0.00015068,2]
[323005277,1713583838629,-500.0,0.00015068,2]
[323005278,1713583838638,-500.0,0.00015068,2]
[323005279,1713583838647,-1240.34,0.00015068,2]
[323005280,1713583838656,-500.0,0.00015068,2]
[323005281,1713583838665,-651.26,0.00015068,2]
[323005282,1713583838675,-500.0,0.00015068,2]
[323005283,1713583838684,-500.0,0.00015068,2]
[323005284,1713583838693,-500.0,0.00015068,2]
[323005285,1713583838703,-500.0,0.00015068,2]
[323005286,1713583838712,-500.0,0.00015068,2]
[323005287,1713583838721,-500.0,0.00015068,2]
[323005288,1713583838730,-500.0,0.00015068,2]
[323005289,1713583838739,-654.08,0.00015068,2]
[323005290,1713583838748,-500.0,0.00015068,2]
[323005291,1713583838757,-500.0,0.00015068,2]
[323005292,1713583838766,-500.0,0.00015068,2]
[323005293,1713583838775,-500.0,0.00015068,2]
[323005294,1713583838783,-500.0,0.00015068,2]
[323005295,1713583838793,-500.0,0.00015068,2]
[323005296,1713583838802,-500.0,0.00015068,2]
[323005297,1713583838811,-500.0,0.00015068,2]
[323005298,1713583838820,-500.0,0.00015068,2]
[323005299,1713583838830,-500.0,0.00015068,2]
[323005300,1713583838839,-500.0,0.00015068,2]
[323005301,1713583838848,-500.0,0.00015068,2]
[323005302,1713583838857,-500.0,0.00015068,2]
[323005303,1713583838866,-500.0,0.00015068,2]
[323005304,1713583838875,-500.0,0.00015068,2]
[323005305,1713583838884,-550.81,0.00015068,2]
[323005306,1713583838892,-773.25,0.00015068,2]
[323005307,1713583838902,-500.0,0.00015068,2]
[323005308,1713583838911,-726.55,0.00015068,2]
[323005309,1713583838920,-500.0,0.00015068,2]
[323005310,1713583838929,-500.0,0.00015068,2]
[323005311,1713583838938,-500.0,0.00015068,2]
[323005312,1713583838947,-500.0,0.00015068,2]
[323005313,1713583838956,-624.89,0.00015068,2]
[323005314,1713583838966,-500.0,0.00015068,2]
[323005315,1713583838975,-500.0,0.00015068,2]
[323005316,1713583838984,-500.0,0.00015068,2]
[323005317,1713583838993,-500.0,0.00015068,2]
[323005318,1713583839002,-500.0,0.00015068,2]
[323005319,1713583839012,-519.44,0.00015068,2]
[323005320,1713583839021,-500.0,0.00015068,2]
[323005321,1713583839030,-500.0,0.00015068,2]
[323005322,1713583839039,-500.0,0.00015068,2]
[323005323,1713583839050,-500.0,0.00015068,2]
[323005324,1713583839059,-500.0,0.00015068,2]
[323005325,1713583839068,-519.95,0.00015068,2]
[323005326,1713583839077,-500.0,0.00015068,2]
[323005327,1713583839087,-500.0,0.00015068,2]
[323005328,1713583839096,-500.0,0.00015068,2]
[323005329,1713583839106,-680.57,0.00015068,2]
[323005330,1713583839115,-500.0,0.00015068,2]
[323005331,1713583839124,-500.0,0.00015068,2]
[323005332,1713583839134,-846.91,0.00015068,2]
[323005333,1713583839143,-500.0,0.00015068,2]
[323005334,1713583839153,-500.0,0.00015068,2]
[323005335,1713583839162,-563.69,0.00015068,2]
[323005336,1713583839173,-500.0,0.00015068,2]
[323005337,1713583839182,-500.0,0.00015068,2]
[323005338,1713583839191,-500.0,0.00015068,2]
[323005339,1713583839200,-500.0,0.00015068,2]
[323005340,1713583839209,-500.0,0.00015068,2]
[323005341,1713583839219,-500.0,0.00015068,2]
[323005342,1713583839228,-500.0,0.00015068,2]
[323005343,1713583839238,-500.0,0.00015068,2]
[323005344,1713583839247,-616.11,0.00015068,2]
[323005345,1713583839256,-500.0,0.00015068,2]
[323005346,1713583839265,-500.0,0.00015068,2]
[323005347,1713583839274,-549.54,0.00015068,2]
[323005348,1713583839283,-500.0,0.00015068,2]
[323005349,1713583839294,-527.54,0.00015068,2]
[323005350,1713583839303,-834.8,0.00015068,2]
[323005351,1713583839312,-500.0,0.00015068,2]
[323005352,1713583839321,-500.0,0.00015068,2]
[323005353,1713583839331,-500.0,0.00015068,2]
[323005354,1713583839340,-620.89,0.00015068,2]
[323005355,1713583839349,-500.0,0.00015068,2]
[323005356,1713583839360,-500.0,0.00015068,2]
[323005357,1713583839370,-500.0,0.00015068,2]
[323005358,1713583839379,-500.0,0.00015068,2]
[323005359,1713583839388,-500.0,0.00015068,2]
[323005360,1713583839682,-500.0,0.00015068,2]
[323005361,1713583839694,-757.71,0.00015068,2]
[323005362,1713583839703,-500.0,0.00015068,2]
[323005363,1713583839713,-500.0,0.00015068,2]
[323005364,1713583839722,-559.91,0.00015068,2]
[323005366,1713583839730,-500.0,0.00015068,2]
[323005367,1713583839739,-500.0,0.00015068,2]
[323005369,1713583839748,-500.0,0.00015068,2]
[323005370,1713583839757,-500.0,0.00015068,2]
[323005371,1713583839766,-150.0,0.00015068,2]
[323005372,1713583839775,-192.64459555,0.00015068,2]
[323005373,1713583839784,-653.63,0.00015068,2]
[323005375,1713583839794,-500.0,0.00015068,2]
[323005377,1713583839804,-500.0,0.00015068,2]
[323005379,1713583839813,-500.0,0.00015068,2]
[323005381,1713583839823,-500.0,0.00015068,2]
[323005382,1713583839835,-500.0,0.00015068,2]
[323005383,1713583839845,-500.0,0.00015068,2]
[323005384,1713583839855,-500.0,0.00015068,2]
[323005385,1713583839865,-500.0,0.00015068,2]
[323005386,1713583839874,-500.0,0.00015068,2]
[323005387,1713583839885,-500.0,0.00015068,2]
[323005388,1713583839896,-500.0,0.00015068,2]
[323005389,1713583839906,-500.0,0.00015068,2]
[323005390,1713583839915,-500.0,0.00015068,2]
[323005391,1713583839924,-500.0,0.00015068,2]
[323005392,1713583839934,-500.0,0.00015068,2]
[323005393,1713583839943,-522.61,0.00015068,2]
[323005394,1713583839952,-500.0,0.00015068,2]
[323005395,1713583839962,-500.0,0.00015068,2]
[323005396,1713583839971,-539.09,0.00015068,2]
[323005397,1713583839981,-500.0,0.00015068,2]
[323005398,1713583839990,-500.0,0.00015068,2]
[323005399,1713583840000,-500.0,0.00015068,2]
[323005400,1713583840011,-500.0,0.00015068,2]
[323005401,1713583840022,-500.0,0.00015068,2]
[323005402,1713583840032,-563.77,0.00015068,2]
[323005403,1713583840041,-500.0,0.00015068,2]
[323005404,1713583840051,-500.0,0.00015068,2]
[323005405,1713583840060,-500.0,0.00015068,2]
[323005406,1713583840069,-500.0,0.00015068,2]
[323005407,1713583840078,-500.0,0.00015068,2]
[323005408,1713583840087,-500.0,0.00015068,2]
[323005409,1713583840096,-500.0,0.00015068,2]
[323005410,1713583840106,-581.74,0.00015068,2]
[323005411,1713583840117,-500.0,0.00015068,2]
[323005412,1713583840126,-513.73,0.00015068,2]
[323005413,1713583840135,-856.02,0.00015068,2]
[323005414,1713583840145,-500.0,0.00015068,2]
[323005415,1713583840155,-500.0,0.00015068,2]
[323005416,1713583840164,-500.0,0.00015068,2]
[323005417,1713583840173,-500.0,0.00015068,2]
[323005418,1713583840182,-585.64,0.00015068,2]
[323005419,1713583840191,-699.2,0.00015068,2]
[323005420,1713583840200,-520.63,0.00015068,2]
[323005421,1713583840209,-500.0,0.00015068,2]
[323005422,1713583840218,-500.0,0.00015068,2]
[323005423,1713583840227,-500.0,0.00015068,2]
[323005424,1713583840236,-500.0,0.00015068,2]
[323005425,1713583840246,-777.19,0.00015068,2]
[323005426,1713583840255,-500.0,0.00015068,2]
[323005427,1713583840264,-745.1,0.00015068,2]
[323005428,1713583840273,-500.0,0.00015068,2]
[323005429,1713583840283,-777.93,0.00015068,2]
[323005430,1713583840292,-504.16860699,0.00015068,2]
[323005431,1713583840302,-500.0,0.00015068,2]
[323005432,1713583840311,-500.0,0.00015068,2]
[323005433,1713583840319,-500.0,0.00015068,2]
[323005434,1713583840329,-745.61,0.00015068,2]
[323005435,1713583840338,-540.46,0.00015068,2]
[323005436,1713583840347,-836.54,0.00015068,2]
[323005437,1713583840357,-500.0,0.00015068,2]
[323005438,1713583840367,-500.0,0.00015068,2]
[323005439,1713583840377,-500.0,0.00015068,2]
[323005440,1713583840386,-500.0,0.00015068,2]
[323005441,1713583840395,-500.0,0.00015068,2]
[323005442,1713583840404,-574.24,0.00015068,2]
[323005443,1713583840414,-500.0,0.00015068,2]
[323005444,1713583840423,-500.0,0.00015068,2]
[323005445,1713583840433,-500.0,0.00015068,2]
[323005446,1713583840446,-500.0,0.00015068,2]
[323005447,1713583840455,-612.24,0.00015068,2]
[323005448,1713583840464,-763.88,0.00015068,2]
[323005449,1713583840474,-500.0,0.00015068,2]
[323005450,1713583840483,-646.15,0.00015068,2]
[323005451,1713583840492,-500.0,0.00015068,2]
[323005452,1713583840501,-500.0,0.00015068,2]
[323005453,1713583840510,-500.0,0.00015068,2]
[323005454,1713583840520,-500.0,0.00015068,2]
[323005455,1713583840529,-553.18,0.00015068,2]
[323005456,1713583840538,-500.0,0.00015068,2]
[323005457,1713583840548,-500.0,0.00015068,2]
[323005458,1713583840557,-686.79,0.00015068,2]
[323005459,1713583840566,-500.0,0.00015068,2]
[323005460,1713583840575,-500.0,0.00015068,2]
[323005461,1713583840585,-645.03,0.00015068,2]
[323005462,1713583840594,-502.9676312,0.00015068,2]
[323005463,1713583840602,-500.0,0.00015068,2]
[323005464,1713583840612,-500.0,0.00015068,2]
[323005465,1713583840621,-500.0,0.00015068,2]
[323005466,1713583840631,-500.0,0.00015068,2]
[323005467,1713583840640,-692.21,0.00015068,2]
[323005468,1713583840650,-598.13,0.00015068,2]
[323005469,1713583840660,-500.0,0.00015068,2]
[323005470,1713583840670,-500.0,0.00015068,2]
[323005471,1713583840681,-1050.01,0.00015068,2]
[323005472,1713583840691,-677.45,0.00015068,2]
[323005473,1713583840701,-500.0,0.00015068,2]
[323005474,1713583840710,-500.0,0.00015068,2]
[323005475,1713583840719,-500.0,0.00015068,2]
[323005476,1713583840728,-500.0,0.00015068,2]
[323005477,1713583840740,-537.28,0.00015068,2]
[323005478,1713583840751,-500.0,0.00015068,2]
[323005479,1713583840760,-857.91,0.00015068,2]
[323005480,1713583840771,-1338.67,0.00015068,2]
[323005481,1713583840781,-500.0,0.00015068,2]
[323005482,1713583840793,-1106.83,0.00015068,2]
[323005483,1713583840802,-1118.13,0.00015068,2]
[323005484,1713583840811,-500.0,0.00015068,2]
[323005485,1713583840821,-832.78,0.00015068,2]
[323005486,1713583840832,-810.81,0.00015068,2]
[323005487,1713583840841,-745.74,0.00015068,2]
[323005488,1713583840851,-500.0,0.00015068,2]
[323005489,1713583840860,-500.0,0.00015068,2]
[323005490,1713583840871,-500.0,0.00015068,2]
[323005491,1713583840882,-873.23,0.00015068,2]
[323005492,1713583840892,-500.0,0.00015068,2]
[323005493,1713583840901,-501.92812672,0.00015068,2]
[323005494,1713583840910,-1471.15,0.00015068,2]
[323005495,1713583840919,-564.49,0.00015068,2]
[323005496,1713583840929,-500.0,0.00015068,2]
[323005497,1713583840938,-500.0,0.00015068,2]
[323005498,1713583840948,-500.0,0.00015068,2]
[323005499,1713583840957,-928.42,0.00015068,2]
[323005500,1713583840966,-671.72,0.00015068,2]
[323005501,1713583840975,-916.22,0.00015068,2]
[323005502,1713583840985,-500.0,0.00015068,2]
[323005503,1713583840995,-500.0,0.00015068,2]
[323005504,1713583841004,-1004.21,0.00015068,2]
[323005505,1713583841014,-500.0,0.00015068,2]
[323005506,1713583841024,-500.0,0.00015068,2]
[323005507,1713583841034,-1906.2,0.00015068,2]
[323005508,1713583841044,-500.0,0.00015068,2]
[323005509,1713583841053,-500.0,0.00015068,2]
[323005510,1713583841063,-507.43,0.00015068,2]
[323005511,1713583841072,-500.0,0.00015068,2]
[323005512,1713583841081,-500.0,0.00015068,2]
[323005513,1713583841091,-619.66,0.00015068,2]
[323005514,1713583841100,-500.0,0.00015068,2]
[323005515,1713583841110,-500.0,0.00015068,2]
[323005516,1713583841120,-500.0,0.00015068,2]
[323005517,1713583841129,-568.92,0.00015068,2]
[323005518,1713583841138,-500.0,0.00015068,2]
[323005519,1713583841147,-500.0,0.00015068,2]
[323005520,1713583841158,-1001.99,0.00015068,2]
[323005521,1713583841167,-534.73,0.00015068,2]
[323005522,1713583841176,-967.21,0.00015068,2]
[323005523,1713583841186,-500.0,0.00015068,2]
[323005524,1713583841196,-500.0,0.00015068,2]
[323005525,1713583841205,-500.0,0.00015068,2]
[323005526,1713583841215,-501.91054886,0.00015068,2]
[323005527,1713583841224,-500.0,0.00015068,2]
[323005528,1713583841233,-500.0,0.00015068,2]
[323005529,1713583841242,-500.0,0.00015068,2]
[323005530,1713583841252,-500.0,0.00015068,2]
[323005531,1713583841261,-500.0,0.00015068,2]
[323005532,1713583841270,-1106.58,0.00015068,2]
[323005533,1713583841280,-500.0,0.00015068,2]
[323005534,1713583841289,-500.0,0.00015068,2]
[323005535,1713583841298,-500.0,0.00015068,2]
[323005536,1713583841307,-500.0,0.00015068,2]
[323005537,1713583841316,-888.76,0.00015068,2]
[323005538,1713583841325,-500.0,0.00015068,2]
[323005539,1713583841334,-638.31,0.00015068,2]
[323005540,1713583841343,-500.0,0.00015068,2]
[323005541,1713583841353,-500.0,0.00015068,2]
[323005542,1713583841362,-500.0,0.00015068,2]
[323005543,1713583841372,-500.0,0.00015068,2]
[323005544,1713583841381,-500.0,0.00015068,2]
[323005545,1713583841390,-578.29,0.00015068,2]
[323005546,1713583841399,-500.0,0.00015068,2]
[323005547,1713583841409,-674.83,0.00015068,2]
[323005548,1713583841418,-500.0,0.00015068,2]
[323005549,1713583841427,-500.0,0.00015068,2]
[323005550,1713583841436,-500.0,0.00015068,2]
[323005551,1713583841447,-717.6,0.00015068,2]
[323005552,1713583841457,-500.0,0.00015068,2]
[323005553,1713583841465,-502.1311957,0.00015068,2]
[323005554,1713583841474,-500.0,0.00015068,2]
[323005555,1713583841483,-500.0,0.00015068,2]
[323005556,1713583841494,-500.0,0.00015068,2]
[323005557,1713583841503,-500.0,0.00015068,2]
[323005558,1713583841514,-500.0,0.00015068,2]
[323005559,1713583841524,-500.0,0.00015068,2]
[323005560,1713583841534,-500.0,0.00015068,2]
[323005561,1713583841545,-746.7,0.00015068,2]
[323005562,1713583841554,-500.0,0.00015068,2]
[323005563,1713583841564,-500.0,0.00015068,2]
[323005564,1713583841572,-500.0,0.00015068,2]
[323005565,1713583841581,-500.0,0.00015068,2]
[323005566,1713583841590,-1680.45,0.00015068,2]
[323005567,1713583841599,-500.0,0.00015068,2]
[323005568,1713583841609,-519.22,0.00015068,2]
[323005569,1713583841618,-840.36,0.00015068,2]
[323005570,1713583841627,-500.0,0.00015068,2]
[323005571,1713583841637,-500.0,0.00015068,2]
[323005572,1713583841646,-500.0,0.00015068,2]
[323005573,1713583841656,-702.27,0.00015068,2]
[323005574,1713583841666,-569.28,0.00015068,2]
[323005575,1713583841674,-500.0,0.00015068,2]
[323005576,1713583841685,-500.0,0.00015068,2]
[323005577,1713583841695,-500.0,0.00015068,2]
[323005578,1713583841705,-500.0,0.00015068,2]
[323005579,1713583841716,-500.0,0.00015068,2]
[323005580,1713583841726,-565.67,0.00015068,2]
[323005581,1713583841735,-568.4,0.00015068,2]
[323005582,1713583841746,-500.0,0.00015068,2]
[323005583,1713583841767,-500.0,0.00015068,2]
[323005584,1713583841778,-500.0,0.00015068,2]
[323005585,1713583841788,-848.31,0.00015068,2]
[323005586,1713583841798,-500.0,0.00015068,2]
[323005587,1713583841808,-1008.27,0.00015068,2]
[323005588,1713583841817,-500.0,0.00015068,2]
[323005589,1713583841827,-500.0,0.00015068,2]
[323005590,1713583841838,-500.0,0.00015068,2]
[323005591,1713583841847,-500.0,0.00015068,2]
[323005592,1713583841856,-500.0,0.00015068,2]
[323005593,1713583841866,-601.03,0.00015068,2]
[323005594,1713583841877,-928.42,0.00015068,2]
[323005595,1713583841888,-500.0,0.00015068,2]
[323005596,1713583841899,-500.0,0.00015068,2]
[323005597,1713583841910,-500.0,0.00015068,2]
[323005598,1713583841920,-500.0,0.00015068,2]
[323005599,1713583841930,-500.0,0.00015068,2]
[323005600,1713583841940,-500.0,0.00015068,2]
[323005601,1713583841950,-500.0,0.00015068,2]
[323005602,1713583841960,-1949.27,0.00015068,2]
[323005603,1713583841969,-1029.85,0.00015068,2]
[323005604,1713583841979,-500.0,0.00015068,2]
[323005605,1713583841988,-500.0,0.00015068,2]
[323005606,1713583841997,-500.0,0.00015068,2]
[323005607,1713583842007,-526.7,0.00015068,2]
[323005608,1713583842016,-500.0,0.00015068,2]
[323005609,1713583842026,-500.0,0.00015068,2]
[323005610,1713583842035,-500.0,0.00015068,2]
[323005611,1713583842044,-500.0,0.00015068,2]
[323005612,1713583842054,-500.0,0.00015068,2]
[323005613,1713583842063,-727.66,0.00015068,2]
[323005614,1713583842073,-647.54,0.00015068,2]
[323005615,1713583842082,-1221.57,0.00015068,2]
[323005616,1713583842092,-500.0,0.00015068,2]
[323005617,1713583842101,-500.0,0.00015068,2]
[323005618,1713583842111,-942.44,0.00015068,2]
[323005619,1713583842120,-500.0,0.00015068,2]
[323005620,1713583842129,-702.83,0.00015068,2]
[323005621,1713583842139,-500.0,0.00015068,2]
[323005622,1713583842148,-500.0,0.00015068,2]
[323005623,1713583842158,-1459.83,0.00015068,2]
[323005624,1713583842167,-500.0,0.00015068,2]
[323005625,1713583842177,-500.0,0.00015068,2]
[323005626,1713583842186,-500.0,0.00015068,2]
[323005627,1713583842195,-1868.1,0.00015068,2]
[323005628,1713583842205,-500.0,0.00015068,2]
[323005629,1713583842214,-500.0,0.00015068,2]
[323005630,1713583842224,-615.54,0.00015068,2]
[323005631,1713583842233,-500.0,0.00015068,2]
[323005632,1713583842243,-500.0,0.00015068,2]
[323005633,1713583842253,-589.54,0.00015068,2]
[323005634,1713583842261,-502.98826193,0.00015068,2]
[323005635,1713583842271,-511.49,0.00015068,2]
[323005636,1713583842280,-500.0,0.00015068,2]
[323005637,1713583842289,-500.0,0.00015068,2]
[323005638,1713583842299,-856.11,0.00015068,2]
[323005639,1713583842309,-500.0,0.00015068,2]
[323005640,1713583842318,-500.0,0.00015068,2]
[323005641,1713583842328,-500.0,0.00015068,2]
[323005642,1713583842339,-1938.39,0.00015068,2]
[323005643,1713583842348,-500.0,0.00015068,2]
[323005644,1713583842358,-500.0,0.00015068,2]
[323005645,1713583842368,-500.0,0.00015068,2]
[323005646,1713583842378,-500.0,0.00015068,2]
[323005647,1713583842387,-500.0,0.00015068,2]
[323005648,1713583842396,-614.02,0.00015068,2]
[323005649,1713583842405,-753.79,0.00015068,2]
[323005650,1713583842415,-1160.99,0.00015068,2]
[323005651,1713583842424,-500.0,0.00015068,2]
[323005652,1713583842434,-1313.22,0.00015068,2]
[323005653,1713583842446,-500.0,0.00015068,2]
[323005654,1713583842460,-502.97211483,0.00015068,2]
[323005655,1713583842469,-858.8,0.00015068,2]
[323005656,1713583842479,-1544.07,0.00015068,2]
[323005657,1713583842491,-500.0,0.00015068,2]
[323005658,1713583842500,-615.0,0.00015068,2]
[323005659,1713583842510,-500.0,0.00015068,2]
[323005660,1713583842519,-500.0,0.00015068,2]
[323005661,1713583842529,-500.0,0.00015068,2]
[323005662,1713583842540,-768.92,0.00015068,2]
[323005663,1713583842550,-500.0,0.00015068,2]
[323005664,1713583842559,-881.7,0.00015068,2]
[323005665,1713583842568,-503.06958541,0.00015068,2]
[323005666,1713583842577,-1021.77,0.00015068,2]
[323005667,1713583842587,-500.0,0.00015068,2]
[323005668,1713583842596,-878.35,0.00015068,2]
[323005669,1713583842605,-196.74624487,0.00015068,2]
[323005670,1713583842615,-2038.58,0.00015068,2]
[323005671,1713583842625,-627.09,0.00015068,2]
[323005672,1713583842635,-600.31,0.00015068,2]
[323005673,1713583842644,-500.0,0.00015068,2]
[323005674,1713583842654,-500.0,0.00015068,2]
[323005675,1713583842663,-500.0,0.00015068,2]
[323005676,1713583842672,-500.0,0.00015068,2]
[323005677,1713583842682,-1128.08,0.00015068,2]
[323005679,1713583842691,-500.0,0.00015068,2]
[323005681,1713583842700,-1200.03,0.00015068,2]
[323005683,1713583842710,-500.0,0.00015068,2]
[323005685,1713583842719,-1087.65,0.00015068,2]
[323005687,1713583842728,-500.0,0.00015068,2]
[323005689,1713583842738,-1218.88,0.00015068,2]
[323005691,1713583842747,-500.0,0.00015068,2]
[323005694,1713583842756,-500.0,0.00015068,2]
[323005696,1713583842767,-500.0,0.00015068,2]
[323005698,1713583842776,-500.0,0.00015068,2]
[323005700,1713583842786,-500.0,0.00015068,2]
[323005702,1713583842795,-500.0,0.00015068,2]
[323005704,1713583842804,-500.0,0.00015068,2]
[323005706,1713583842814,-682.65,0.00015068,2]
[323005707,1713583842824,-500.0,0.00015068,2]
[323005708,1713583842834,-594.84,0.00015068,2]
[323005709,1713583842843,-789.28,0.00015068,2]
[323005710,1713583842853,-500.0,0.00015068,2]
[323005711,1713583842862,-995.26,0.00015068,2]
[323005712,1713583842871,-500.0,0.00015068,2]
[323005713,1713583842882,-500.0,0.00015068,2]
[323005714,1713583842892,-1704.5,0.00015068,2]
[323005715,1713583842901,-500.0,0.00015068,2]
[323005716,1713583842911,-500.0,0.00015068,2]
[323005717,1713583842920,-1071.49,0.00015068,2]
[323005718,1713583842930,-500.0,0.00015068,2]
[323005719,1713583842939,-648.11077579,0.00015068,2]
[323005720,1713583842949,-500.0,0.00015068,2]
[323005721,1713583842959,-879.76,0.00015068,2]
[323005722,1713583842968,-500.0,0.00015068,2]
[323005723,1713583842977,-500.0,0.00015068,2]
[323005724,1713583842986,-500.0,0.00015068,2]
[323005725,1713583843000,-500.0,0.00015068,2]
[323005726,1713583843009,-500.0,0.00015068,2]
[323005727,1713583843019,-500.0,0.00015068,2]
[323005728,1713583843028,-1159.36,0.00015068,2]
[323005729,1713583843040,-1414.9,0.00015068,2]
[323005730,1713583843052,-533.25,0.00015068,2]
[323005731,1713583843061,-500.0,0.00015068,2]
[323005732,1713583843072,-500.0,0.00015068,2]
[323005733,1713583843082,-500.0,0.00015068,2]
[323005734,1713583843091,-500.0,0.00015068,2]
[323005735,1713583843101,-500.0,0.00015068,2]
[323005736,1713583843111,-500.0,0.00015068,2]
[323005737,1713583843122,-1105.33,0.00015068,2]
[323005738,1713583843132,-500.0,0.00015068,2]
[323005739,1713583843142,-1601.11,0.00015068,2]
[323005740,1713583843153,-500.0,0.00015068,2]
[323005741,1713583843164,-500.0,0.00015068,2]
[323005742,1713583843175,-500.0,0.00015068,2]
[323005743,1713583843185,-500.0,0.00015068,2]
[323005744,1713583843195,-542.89,0.00015068,2]
[323005745,1713583843206,-752.51,0.00015068,2]
[323005746,1713583843216,-727.96,0.00015068,2]
[323005747,1713583843226,-500.0,0.00015068,2]
[323005748,1713583843236,-500.0,0.00015068,2]
[323005749,1713583843246,-500.0,0.00015068,2]
[323005750,1713583843256,-500.0,0.00015068,2]
[323005751,1713583843266,-662.21,0.00015068,2]
[323005752,1713583843276,-503.56,0.00015068,2]
[323005753,1713583843286,-500.0,0.00015068,2]
[323005754,1713583843297,-500.0,0.00015068,2]
[323005755,1713583843306,-1361.39,0.00015068,2]
[323005756,1713583843316,-500.0,0.00015068,2]
[323005757,1713583843325,-507.6,0.00015068,2]
[323005758,1713583843335,-500.0,0.00015068,2]
[323005759,1713583843345,-509.8,0.00015068,2]
[323005760,1713583843355,-520.53,0.00015068,2]
[323005761,1713583843364,-500.0,0.00015068,2]
[323005762,1713583843374,-777.83,0.00015068,2]
[323005763,1713583843383,-1779.68,0.00015068,2]
[323005764,1713583843393,-920.53,0.00015068,2]
[323005765,1713583843403,-244.14086125,0.00015068,2]
[323005766,1713583843413,-847.14,0.00015068,2]
[323005767,1713583843423,-500.0,0.00015068,2]
[323005768,1713583843433,-1817.5,0.00015068,2]
[323005769,1713583843443,-2759.64,0.00015068,2]
[323005770,1713583843455,-500.0,0.00015068,2]
[323005771,1713583843467,-506.36,0.00015068,2]
[323005772,1713583843476,-500.0,0.00015068,2]
[323005773,1713583843487,-500.0,0.00015068,2]
[323005774,1713583843497,-500.0,0.00015068,2]
[323005775,1713583843507,-690.58,0.00015068,2]
[323005777,1713583843517,-500.0,0.00015068,2]
[323005778,1713583843527,-1714.8,0.00015068,2]
[323005779,1713583843536,-561.94,0.00015068,2]
[323005780,1713583843547,-1251.58,0.00015068,2]
[323005781,1713583843556,-500.0,0.00015068,2]
[323005782,1713583843567,-500.0,0.00015068,2]
[323005783,1713583843576,-2125.97,0.00015068,2]
[323005784,1713583843586,-1219.76,0.00015068,2]
[323005785,1713583843596,-3806.67,0.00015068,2]
[323005786,1713583843607,-500.0,0.00015068,2]
[323005787,1713583843617,-500.0,0.00015068,2]